[Event "1st Gujarat GM Open 2018"]
[Site "Ahmedabad"]
[Date "2018.10.07"]
[Round "4"]
[White "Ter-Sahakyan, Samvel"]
[Black "Thipsay, Praveen M"]
[Result "1-0"]
[ECO "C99"]
[WhiteElo "2547"]
[BlackElo "2410"]
[Annotator "ChessBase"]
[PlyCount "95"]
[EventDate "2018.10.05"]
[EventType "swiss"]
[EventCountry "IND"]
[SourceTitle "playchess.com"]
[Source "ChessBase"]
[SourceQuality "1"]
[TimeControl "5400+30"]

1. e4 {[%emt 0:00:00]} e5 {[%emt 0:00:20]} 2. Nf3 {[%emt 0:00:00]} Nc6 {[%emt 0:00:09]} 3. Bb5 {[%emt 0:00:00]} a6 {[%emt 0:00:08]} 4. Ba4 {[%emt 0:00:00]} Nf6 {[%emt 0:00:10]} 5. O-O {[%emt 0:00:00]} Be7 {[%emt 0:00:18]} 6. Re1 {[%emt 0:00:53]} b5 {[%emt 0:00:17]} 7. Bb3 {[%emt 0:00:06]} d6 {[%emt 0:00:15]} 8. c3 {[%emt 0:00:10]} O-O {[%emt 0:00:06]} 9. h3 {[%emt 0:00:05]} Na5 {[%emt 0:00:28]} 10. Bc2 {[%emt 0:00:06]} c5 {[%emt 0:00:11]} 11. d4 {[%emt 0:00:05]} Qc7 {[%emt 0:00:13]} 12. Nbd2 {[%emt 0:00:08]} cxd4 {[%emt 0:01:08]} 13. cxd4 {[%emt 0:00:04]} Nc6 {[%emt 0:00:38]} 14. Nb3 {[%emt 0:02:09]} a5 {[%emt 0:00:33]} 15. Be3 {[%emt 0:00:25]} a4 {[%emt 0:00:09]} 16. Nbd2 {[%emt 0:00:07]} Bd7 {[%emt 0:00:18]} 17. a3 {[%emt 0:09:49]} Rfc8 {[%emt 0:07:06]} 18. Bd3 {[%emt 0:00:46]} Qb7 {[%emt 0:04:17]} 19. Qe2 {[%emt 0:10:46]} b4 {[%emt 0:11:24]} 20. Nc4 {[%emt 0:24:02]} exd4 {[%emt 0:02:11]} 21. Bf4 {[%emt 0:00:36]} Ne8 {[%emt 0:02:21]} 22. e5 {[%emt 0:00:43]} d5 {[%emt 0:20:47]} 23. Nd6 {[%emt 0:00:35]} Nxd6 {[%emt 0:00:07]} 24. exd6 {[%emt 0:00:06]} Bf8 {[%emt 0:00:19]} 25. Ng5 {[%emt 0:05:20]} h6 {[%emt 0:14:14]} 26. Qh5 {[%emt 0:14:34]} Be8 {[%emt 0:00:39]} 27. Nh7 {[%emt 0:00:09]} Bd7 {[%emt 0:05:14]} 28. Ng5 {[%emt 0:16:09]} Be8 {[%emt 0:01:05]} 29. Bh7+ {[%emt 0:00:15]} Kh8 {[%emt 0:00:09]} 30. Bf5 {[%emt 0:00:03]} g6 {[%emt 0:03:28]} 31. Bxc8 {[%emt 0:00:10]} Rxc8 {[%emt 0:00:17]} 32. Qh4 {[%emt 0:00:46]} Kg8 {[%emt 0:03:21]} 33. Nf3 {[%emt 0:01:42]} g5 {[%emt 0:02:41]} 34. Qg3 {[%emt 0:03:36]} Bg7 {[%emt 0:00:17]} 35. Be5 {[%emt 0:01:28]} Nxe5 {[%emt 0:04:31]} 36. Nxe5 {[%emt 0:00:01]} Rd8 {[%emt 0:03:30]} 37. axb4 {[%emt 0:04:58]} Bb5 {[%emt 0:00:30]} 38. Rac1 {[%emt 0:02:06]} Qa6 {[%emt 0:03:29]} 39. Nxf7 {[%emt 0:02:00]} Rd7 {[%emt 0:04:13]} 40. Rc7 {[%emt 0:00:40]} d3 {[%emt 0:01:33]} 41. Qf3 {[%emt 0:02:39]} Rxc7 {[%emt 0:06:07]} 42. dxc7 {[%emt 0:00:01]} d2 {[%emt 0:00:36]} 43. Re7 {[%emt 0:00:50]} Be2 {[%emt 0:00:29]} 44. Re8+ {[%emt 0:01:20]} Kh7 {[%emt 0:00:19]} 45. Qf5+ {[%emt 0:00:19]} Qg6 {[%emt 0:00:05]} 46. c8=Q {[%emt 0:00:32]} d1=Q+ {[%emt 0:00:14]} 47. Kh2 {[%emt 0:00:06]} Qd4 {[%emt 0:00:53]} 48. Rxe2 {[%emt 0:00:20]} 1-0

[Event "1st Gujarat GM Open 2018"]
[Site "Ahmedabad"]
[Date "2018.10.07"]
[Round "4"]
[White "Stany, G.A."]
[Black "Raghunandan, Kaumandur Srihari"]
[Result "1-0"]
[ECO "B90"]
[WhiteElo "2502"]
[BlackElo "2394"]
[Annotator "ChessBase"]
[PlyCount "83"]
[EventDate "2018.10.05"]
[EventType "swiss"]
[EventCountry "IND"]
[SourceTitle "playchess.com"]
[Source "ChessBase"]
[SourceQuality "1"]
[TimeControl "5400+30"]

1. e4 {[%emt 0:00:00]} c5 {[%emt 0:00:00]} 2. Nf3 {[%emt 0:00:00]} d6 {[%emt 0:00:00]} 3. d4 {[%emt 0:00:00]} cxd4 {[%emt 0:00:00]} 4. Nxd4 {[%emt 0:00:00]} Nf6 {[%emt 0:00:07]} 5. Nc3 {[%emt 0:00:00]} a6 {[%emt 0:00:05]} 6. Be3 {[%emt 0:00:01]} e5 {[%emt 0:01:28]} 7. Nb3 {[%emt 0:00:05]} Be6 {[%emt 0:00:09]} 8. f3 h5 {[%emt 0:00:43]} 9. Qd2 {[%emt 0:00:28]} Be7 {[%emt 0:02:09]} 10. Be2 {[%emt 0:02:18]} Nbd7 {[%emt 0:01:31]} 11. Nd5 {[%emt 0:00:06]} Nxd5 {[%emt 0:01:47]} 12. exd5 {[%emt 0:00:09]} Bf5 {[%emt 0:00:05]} 13. O-O {[%emt 0:01:46]} O-O {[%emt 0:00:47]} 14. c4 {[%emt 0:15:24]} Bg6 {[%emt 0:04:04]} 15. Na5 {[%emt 0:00:42]} Qc7 {[%emt 0:13:06]} 16. b4 {[%emt 0:00:30]} b6 {[%emt 0:12:42]} 17. Nc6 {[%emt 0:00:17]} Bf6 {[%emt 0:00:10]} 18. Rac1 {[%emt 0:06:14]} Rfe8 {[%emt 0:02:52]} 19. Bd1 {[%emt 0:07:15]} a5 {[%emt 0:05:48]} 20. bxa5 {[%emt 0:01:41]} bxa5 {[%emt 0:00:07]} 21. Ba4 {[%emt 0:00:13]} Bf5 {[%emt 0:10:04]} 22. Bb5 {[%emt 0:09:08]} Rec8 {[%emt 0:12:38]} 23. a4 {[%emt 0:03:34]} Kh7 {[%emt 0:05:09]} 24. g4 {[%emt 0:12:19]} Bg6 {[%emt 0:01:41]} 25. h3 {[%emt 0:02:12]} Nb8 {[%emt 0:05:24]} 26. c5 {[%emt 0:09:08]} dxc5 {[%emt 0:01:29]} 27. d6 {[%emt 0:05:45]} Qb7 {[%emt 0:00:15]} 28. Nxb8 {[%emt 0:05:36]} Raxb8 {[%emt 0:00:51]} 29. d7 {[%emt 0:00:46]} Rc7 {[%emt 0:02:58]} 30. Rxc5 {[%emt 0:05:47]} Be7 {[%emt 0:02:39]} 31. Rxe5 {[%emt 0:03:23]} Rc2 {[%emt 0:00:24]} 32. Qd5 {[%emt 0:00:04]} Qc7 {[%emt 0:00:17]} 33. gxh5 {[%emt 0:02:38]} Bf5 {[%emt 0:00:18]} 34. Bf2 {[%emt 0:00:09]} Rd2 {[%emt 0:02:58]} 35. Qxd2 {[%emt 0:00:46]} Qxe5 {[%emt 0:00:05]} 36. Re1 {[%emt 0:02:31]} Qf6 {[%emt 0:00:12]} 37. Qf4 {[%emt 0:00:17]} Bd6 {[%emt 0:07:30]} 38. Qh4 {[%emt 0:00:08]} Qc3 {[%emt 0:04:18]} 39. d8=Q {[%emt 0:01:36]} Rxd8 {[%emt 0:00:12]} 40. Qxd8 {[%emt 0:00:07]} Qd2 {[%emt 0:00:17]} 41. Re8 {[%emt 0:02:37]} Qc1+ {[%emt 0:02:08]} 42. Bf1 {[%emt 0:00:08]} 1-0

[Event "1st Gujarat GM Open 2018"]
[Site "Ahmedabad"]
[Date "2018.10.07"]
[Round "4"]
[White "Babujian, Levon"]
[Black "Popov, Ivan"]
[Result "1-0"]
[ECO "D20"]
[WhiteElo "2456"]
[BlackElo "2611"]
[Annotator "ChessBase"]
[PlyCount "105"]
[EventDate "2018.10.05"]
[EventType "swiss"]
[EventCountry "IND"]
[SourceTitle "playchess.com"]
[Source "ChessBase"]
[SourceQuality "1"]
[TimeControl "5400+30"]

1. d4 {[%emt 0:00:00]} d5 {[%emt 0:01:59]} 2. c4 {[%emt 0:00:00]} dxc4 {[%emt 0:00:10]} 3. e4 {[%emt 0:00:00]} Nf6 {[%emt 0:00:15]} 4. e5 {[%emt 0:00:09]} Nd5 {[%emt 0:00:10]} 5. Bxc4 {[%emt 0:00:08]} Nb6 {[%emt 0:00:08]} 6. Bb3 {[%emt 0:00:06]} Bf5 {[%emt 0:00:46]} 7. Nf3 {[%emt 0:02:59]} e6 {[%emt 0:00:51]} 8. Nc3 {[%emt 0:00:23]} Nc6 {[%emt 0:03:55]} 9. O-O {[%emt 0:00:07]} Nb4 {[%emt 0:02:00]} 10. Bg5 {[%emt 0:00:05]} Qd7 {[%emt 0:03:46]} 11. a3 {[%emt 0:01:00]} N4d5 {[%emt 0:00:17]} 12. Nh4 {[%emt 0:00:13]} h6 {[%emt 0:07:54]} 13. Nxf5 {[%emt 0:01:04]} hxg5 {[%emt 0:03:00]} 14. Ne3 {[%emt 0:00:24]} c6 {[%emt 0:04:42]} 15. Ncxd5 {[%emt 0:11:04]} Nxd5 {[%emt 0:01:47]} 16. Nxd5 {[%emt 0:00:47]} exd5 {[%emt 0:01:28]} 17. Bc2 {[%emt 0:00:08]} O-O-O {[%emt 0:02:05]} 18. Qd2 {[%emt 0:06:56]} f6 {[%emt 0:04:44]} 19. Rfe1 {[%emt 0:08:50]} fxe5 {[%emt 0:08:42]} 20. dxe5 {[%emt 0:00:43]} Be7 {[%emt 0:05:49]} 21. h3 {[%emt 0:06:12]} Rh4 {[%emt 0:08:28]} 22. Bd1 {[%emt 0:10:31]} Rdh8 {[%emt 0:00:08]} 23. e6 {[%emt 0:02:03]} Qd6 {[%emt 0:02:53]} 24. Bg4 {[%emt 0:05:13]} Qf4 {[%emt 0:00:21]} 25. Qe2 {[%emt 0:02:33]} R4h6 {[%emt 0:00:15]} 26. Rad1 {[%emt 0:01:31]} Rf6 {[%emt 0:02:06]} 27. b4 {[%emt 0:06:00]} Rhf8 {[%emt 0:01:22]} 28. Rd2 {[%emt 0:01:15]} Qd6 {[%emt 0:12:42]} 29. Qe3 {[%emt 0:03:09]} Kb8 {[%emt 0:02:06]} 30. Qd3 {[%emt 0:02:36]} Rd8 {[%emt 0:06:30]} 31. Rde2 {[%emt 0:02:28]} Rdf8 {[%emt 0:00:44]} 32. Rb1 {[%emt 0:02:00]} Rf4 {[%emt 0:01:31]} 33. Qg6 {[%emt 0:01:30]} Bf6 {[%emt 0:06:01]} 34. g3 {[%emt 0:04:10]} Rc4 {[%emt 0:00:06]} 35. Rb3 {[%emt 0:05:12]} Qe7 {[%emt 0:00:25]} 36. Rf3 {[%emt 0:01:10]} Rc3 {[%emt 0:00:40]} 37. Kg2 {[%emt 0:02:19]} Rxf3 {[%emt 0:00:13]} 38. Bxf3 {[%emt 0:00:04]} Rd8 {[%emt 0:02:41]} 39. Qf5 {[%emt 0:02:50]} d4 {[%emt 0:01:28]} 40. Be4 {[%emt 0:04:13]} Rd6 {[%emt 0:01:10]} 41. Bd3 {[%emt 0:00:56]} Rd5 {[%emt 0:00:02]} 42. Qg6 {[%emt 0:01:50]} Re5 {[%emt 0:00:14]} 43. Rxe5 {[%emt 0:00:24]} Bxe5 {[%emt 0:00:02]} 44. Qf7 {[%emt 0:01:52]} Bf6 {[%emt 0:02:33]} 45. Kf3 {[%emt 0:01:08]} Kc7 {[%emt 0:00:02]} 46. Ke4 {[%emt 0:00:15]} Kd6 {[%emt 0:00:50]} 47. Kf5 {[%emt 0:01:43]} g6+ {[%emt 0:01:21]} 48. Kxg6 {[%emt 0:00:16]} Be5 {[%emt 0:00:38]} 49. Qxe7+ {[%emt 0:00:26]} Kxe7 {[%emt 0:00:01]} 50. Kxg5 {[%emt 0:00:13]} Kxe6 {[%emt 0:00:07]} 51. Kg6 {[%emt 0:00:13]} Ke7 {[%emt 0:00:44]} 52. h4 {[%emt 0:00:49]} Kf8 {[%emt 0:00:05]} 53. h5 {[%emt 0:00:21]} 1-0

[Event "1st Gujarat GM Open 2018"]
[Site "Ahmedabad"]
[Date "2018.10.07"]
[Round "4"]
[White "Kasparov, Sergey"]
[Black "Navalgund, Niranjan"]
[Result "1/2-1/2"]
[ECO "C77"]
[WhiteElo "2453"]
[BlackElo "2245"]
[Annotator "ChessBase"]
[PlyCount "119"]
[EventDate "2018.10.05"]
[EventType "swiss"]
[EventCountry "IND"]
[SourceTitle "playchess.com"]
[Source "ChessBase"]
[SourceQuality "1"]
[TimeControl "5400+30"]

1. e4 {[%emt 0:00:00]} e5 {[%emt 0:00:00]} 2. Nf3 {[%emt 0:00:00]} Nc6 {[%emt 0:00:00]} 3. Bb5 {[%emt 0:00:00]} a6 {[%emt 0:00:00]} 4. Ba4 {[%emt 0:00:00]} Nf6 {[%emt 0:00:06]} 5. Bxc6 {[%emt 0:00:01]} dxc6 {[%emt 0:00:03]} 6. d3 {[%emt 0:00:17]} Bd6 {[%emt 0:00:36]} 7. Nbd2 {[%emt 0:00:59]} c5 {[%emt 0:00:32]} 8. Nc4 {[%emt 0:01:44]} Nd7 {[%emt 0:00:19]} 9. O-O {[%emt 0:00:44]} O-O {[%emt 0:00:25]} 10. b3 {[%emt 0:00:17]} f6 {[%emt 0:06:50]} 11. Nh4 {[%emt 0:01:27]} Rf7 {[%emt 0:00:18]} 12. Nf5 {[%emt 0:10:49]} Nb8 {[%emt 0:00:46]} 13. Nfxd6 {[%emt 0:02:31]} cxd6 {[%emt 0:00:15]} 14. f4 {[%emt 0:00:09]} b5 {[%emt 0:03:39]} 15. Ne3 {[%emt 0:01:16]} exf4 {[%emt 0:01:40]} 16. Rxf4 {[%emt 0:00:18]} Be6 {[%emt 0:07:50]} 17. c4 {[%emt 0:02:35]} Nc6 {[%emt 0:01:35]} 18. Bb2 {[%emt 0:01:17]} Qd7 {[%emt 0:05:51]} 19. Qd2 {[%emt 0:03:20]} f5 {[%emt 0:04:09]} 20. exf5 {[%emt 0:01:42]} Bxf5 {[%emt 0:00:05]} 21. Raf1 {[%emt 0:00:56]} Raf8 {[%emt 0:00:18]} 22. d4 {[%emt 0:06:14]} cxd4 {[%emt 0:02:49]} 23. Bxd4 {[%emt 0:00:53]} Be6 {[%emt 0:01:32]} 24. Rxf7 {[%emt 0:02:36]} Rxf7 {[%emt 0:00:03]} 25. Rxf7 {[%emt 0:01:44]} Qxf7 {[%emt 0:05:05]} 26. cxb5 {[%emt 0:06:38]} axb5 {[%emt 0:00:02]} 27. Qc3 {[%emt 0:01:03]} Bd7 {[%emt 0:01:01]} 28. Nf1 {[%emt 0:03:59]} Qg6 {[%emt 0:15:36]} 29. Bf2 {[%emt 0:07:16]} Qe4 {[%emt 0:01:57]} 30. h3 {[%emt 0:04:08]} Qe5 {[%emt 0:03:57]} 31. Qd2 {[%emt 0:01:43]} d5 {[%emt 0:05:11]} 32. Ng3 {[%emt 0:02:32]} Nd8 {[%emt 0:02:09]} 33. Ne2 {[%emt 0:03:17]} Ne6 {[%emt 0:02:18]} 34. Bg3 {[%emt 0:06:30]} Qf5 {[%emt 0:00:03]} 35. Nd4 {[%emt 0:02:20]} Nxd4 {[%emt 0:07:59]} 36. Qxd4 {[%emt 0:00:28]} Qe4 {[%emt 0:01:41]} 37. Qa7 {[%emt 0:02:22]} Bc6 {[%emt 0:03:26]} 38. Qb8+ {[%emt 0:00:54]} Qe8 {[%emt 0:00:30]} 39. Qb6 {[%emt 0:01:25]} Bd7 {[%emt 0:03:43]} 40. Bf2 {[%emt 0:04:22]} Bc6 {[%emt 0:06:00]} 41. Bd4 {[%emt 0:02:36]} h6 {[%emt 0:00:27]} 42. Qc7 {[%emt 0:01:07]} Qd7 {[%emt 0:00:02]} 43. Qe5 {[%emt 0:00:25]} Qf7 {[%emt 0:00:53]} 44. Kh2 {[%emt 0:01:01]} Kh7 {[%emt 0:00:53]} 45. g4 {[%emt 0:00:19]} Qg6 {[%emt 0:00:37]} 46. Kg3 {[%emt 0:01:37]} Qd3+ {[%emt 0:00:09]} 47. Kf2 {[%emt 0:00:58]} Qd2+ {[%emt 0:00:17]} 48. Kf3 {[%emt 0:00:28]} Qd3+ {[%emt 0:00:23]} 49. Qe3 {[%emt 0:00:26]} Qxe3+ {[%emt 0:01:09]} 50. Kxe3 {[%emt 0:00:33]} g5 {[%emt 0:01:13]} 51. Kd2 {[%emt 0:02:25]} h5 {[%emt 0:00:50]} 52. Kc3 {[%emt 0:01:32]} hxg4 {[%emt 0:00:27]} 53. hxg4 {[%emt 0:00:02]} Kg6 {[%emt 0:01:12]} 54. Kb4 {[%emt 0:00:13]} Kf7 {[%emt 0:01:20]} 55. Kc5 {[%emt 0:03:20]} Bd7 {[%emt 0:00:01]} 56. a3 {[%emt 0:02:37]} Ke7 {[%emt 0:00:30]} 57. b4 {[%emt 0:01:16]} Kf7 {[%emt 0:00:14]} 58. Be3 {[%emt 0:02:39]} Kf6 {[%emt 0:00:05]} 59. Bd4+ {[%emt 0:00:06]} Kf7 {[%emt 0:00:11]} 60. Be3 {[%emt 0:00:45]} 1/2-1/2

[Event "1st Gujarat GM Open 2018"]
[Site "Ahmedabad"]
[Date "2018.10.07"]
[Round "4"]
[White "Neelotpal, Das"]
[Black "Matta, Vinay Kumar"]
[Result "1-0"]
[ECO "C86"]
[WhiteElo "2436"]
[BlackElo "2129"]
[Annotator "NA"]
[PlyCount "71"]
[EventDate "2018.10.05"]
[EventType "swiss"]
[EventCountry "IND"]
[SourceTitle "playchess.com"]
[Source "ChessBase"]
[SourceQuality "1"]
[TimeControl "5400+30"]

1. e4 {[%emt 1:30:30]} e5 {[%emt 0:05:23]} 2. Nf3 {[%emt 0:00:00]} Nc6 {[%emt 0:00:05]} 3. Bb5 {[%emt 0:00:00]} a6 {[%emt 0:00:06]} 4. Ba4 {[%emt 0:00:00]} Nf6 {[%emt 0:00:04]} 5. O-O {[%emt 0:00:00]} Be7 {[%emt 0:00:05]} 6. Qe2 {[%emt 0:00:00]} b5 {[%emt 0:00:12]} 7. Bb3 {[%emt 0:00:00]} O-O {[%emt 0:00:16]} 8. c3 {[%emt 0:00:00]} d5 {[%emt 0:01:11]} 9. d3 {[%emt 0:00:00]} dxe4 {[%emt 0:00:35] C86: Closed Ruy Lopez: Worrall Attack} (9... Re8 10. Rd1 Be6 11. Nbd2 h6 12. Nf1 Bf8 13. Ng3 d4 14. Bxe6 Rxe6 15. Nf5 Ne8 16. a4 Rb8 17. axb5 axb5 {0-1 (66) Bacrot,E (2725)-Aronian,L (2805) Riadh 2017}) 10. dxe4 {[%emt 0:00:00]} Be6 {[%emt 0:01:39]} 11. Rd1 {[%emt 0:00:00]} Bd6 {[%emt 0:04:36]} 12. Bg5 {[%emt 0:00:00]} Qe7 $146 {[%emt 0:01:22]} ({Predecessor:} 12... Bxb3 13. axb3 h6 14. Bh4 Qe7 15. Bxf6 Qxf6 16. Nbd2 Nd8 17. Nf1 {1-0 (61) Lilienthal,A-Szigeti,M Budapest 1932}) 13. Nbd2 {[%emt 0:00:00]} Na5 {[%emt 0:01:12]} 14. Bxe6 {[%emt 0:00:00]} Qxe6 {[%emt 0:00:43]} 15. b4 {[%emt 0:00:00]} Nb7 {[%emt 0:00:54]} 16. a4 {[%emt 0:00:00]} c6 {[%emt 0:00:52]} 17. Nh4 {[%emt 0:00:00]} h6 {[%emt 0:02:12]} 18. Be3 {[%emt 0:00:00]} Rfe8 {[%emt 0:07:50]} 19. Nf5 {[%emt 0:00:00]} Bf8 {[%emt 0:02:18]} 20. f3 {[%emt 0:00:00]} Kh7 {[%emt 0:06:25]} 21. Rdb1 {[%emt 0:00:00]} g6 {[%emt 0:00:59]} 22. Ng3 {[%emt 0:00:00]} h5 {[%emt 0:06:51]} 23. c4 {[%emt 0:00:00]} a5 $11 {[%emt 0:07:24]} 24. cxb5 {[%emt 0:00:00]} Bxb4 {[%emt 0:03:18]} 25. b6 {[%emt 0:00:00]} c5 {[%emt 0:01:41]} 26. Nc4 {[%emt 0:00:00]} Nd7 {[%emt 0:00:55]} 27. Rd1 {[%emt 0:00:00]} Nxb6 {[%emt 0:01:33]} 28. Nxb6 {[%emt 0:00:00]} Qxb6 {[%emt 0:00:24]} 29. Rd7 {[%emt 0:00:00]} Kg8 {[%emt 0:00:53]} 30. Qa2 {[%emt 0:00:00]} Nd8 {[%emt 0:02:45]} 31. Rad1 {[%emt 0:00:40]} Ne6 {[%emt 0:03:31]} 32. R1d6 {[%emt 0:01:50]} Qb8 {[%emt 0:00:41]} 33. Nf5 {[%emt 0:00:54]} gxf5 {[%emt 0:03:49]} 34. exf5 {[%emt 0:00:09]} Qc8 {[%emt 0:09:05]} 35. fxe6 {[%emt 0:06:12]} Rxe6 {[%emt 0:00:10]} 36. Qd5 {[%emt 0:00:14]} 1-0

[Event "1st Gujarat GM Open 2018"]
[Site "Ahmedabad"]
[Date "2018.10.07"]
[Round "4"]
[White "Bakunts, Rafael"]
[Black "Bhambure, Shantanu"]
[Result "1-0"]
[ECO "C95"]
[WhiteElo "2427"]
[BlackElo "2243"]
[Annotator "ChessBase"]
[PlyCount "79"]
[EventDate "2018.10.05"]
[EventType "swiss"]
[EventCountry "IND"]
[SourceTitle "playchess.com"]
[Source "ChessBase"]
[SourceQuality "1"]
[TimeControl "5400+30"]

1. e4 {[%emt 0:00:08]} e5 {[%emt 0:00:00]} 2. Nf3 {[%emt 0:00:14]} Nc6 {[%emt 0:00:00]} 3. Bb5 {[%emt 0:00:19]} a6 {[%emt 0:00:00]} 4. Ba4 {[%emt 0:00:20]} Nf6 {[%emt 0:00:00]} 5. O-O {[%emt 0:00:11]} Be7 {[%emt 0:00:13]} 6. Re1 {[%emt 0:00:13]} b5 {[%emt 0:00:14]} 7. Bb3 {[%emt 0:00:09]} d6 {[%emt 0:00:16]} 8. c3 {[%emt 0:00:12]} O-O {[%emt 0:00:22]} 9. h3 {[%emt 0:00:14]} Nb8 {[%emt 0:00:14]} 10. d4 {[%emt 0:00:10]} Nbd7 {[%emt 0:00:13]} 11. Nbd2 {[%emt 0:00:09]} Bb7 {[%emt 0:00:11]} 12. Bc2 {[%emt 0:00:11]} Re8 {[%emt 0:00:19]} 13. Nf1 {[%emt 0:00:13]} Bf8 {[%emt 0:00:20]} 14. Ng3 {[%emt 0:00:09]} g6 {[%emt 0:00:14]} 15. Bg5 {[%emt 0:00:12]} h6 {[%emt 0:01:17]} 16. Bd2 {[%emt 0:00:14]} exd4 {[%emt 0:00:27]} 17. cxd4 {[%emt 0:02:33]} c5 {[%emt 0:00:06]} 18. d5 {[%emt 0:02:41]} Bg7 {[%emt 0:00:39]} 19. a4 Nb6 {[%emt 0:12:17]} 20. b3 {[%emt 0:14:32]} Nfd7 {[%emt 0:06:05]} 21. Ra2 {[%emt 0:09:23]} c4 {[%emt 0:15:06]} 22. a5 {[%emt 0:08:55]} cxb3 {[%emt 0:01:03]} 23. Bxb3 {[%emt 0:00:08]} Nc8 {[%emt 0:02:31]} 24. Bb4 {[%emt 0:07:13]} Nc5 {[%emt 0:03:12]} 25. Bc2 {[%emt 0:00:28]} Ne7 {[%emt 0:01:38]} 26. h4 {[%emt 0:04:00]} Qc7 {[%emt 0:17:08]} 27. h5 {[%emt 0:00:50]} g5 {[%emt 0:03:15]} 28. Ra3 {[%emt 0:01:55]} Rad8 {[%emt 0:03:15]} 29. Rae3 {[%emt 0:09:59]} Bc8 {[%emt 0:05:36]} 30. Qc1 {[%emt 0:00:22]} Bg4 {[%emt 0:02:03]} 31. e5 {[%emt 0:04:13]} dxe5 {[%emt 0:06:03]} 32. Bxc5 {[%emt 0:03:00]} Nxd5 {[%emt 0:00:58]} 33. Bb6 {[%emt 0:00:21]} Qc8 {[%emt 0:01:28]} 34. Bxd8 {[%emt 0:03:45]} Nxe3 {[%emt 0:00:20]} 35. Qxe3 {[%emt 0:01:34]} Qxc2 {[%emt 0:01:39]} 36. Bb6 {[%emt 0:00:25]} f5 {[%emt 0:02:21]} 37. Nd4 {[%emt 0:05:20]} Qc8 {[%emt 0:04:29]} 38. Rc1 {[%emt 0:00:29]} Qd7 {[%emt 0:00:46]} 39. Qb3+ {[%emt 0:00:11]} Kh8 {[%emt 0:00:53]} 40. Rc7 {[%emt 0:00:48]} 1-0

[Event "1st Gujarat GM Open 2018"]
[Site "Ahmedabad"]
[Date "2018.10.07"]
[Round "4"]
[White "Akash G"]
[Black "Sivuk, Vitaly"]
[Result "1-0"]
[ECO "A48"]
[WhiteElo "2424"]
[BlackElo "2545"]
[Annotator "ChessBase"]
[PlyCount "98"]
[EventDate "2018.10.05"]
[EventType "swiss"]
[EventCountry "IND"]
[SourceTitle "playchess.com"]
[Source "ChessBase"]
[SourceQuality "1"]
[TimeControl "5400+30"]

1. Nf3 {[%emt 0:00:37]} Nf6 {[%emt 0:00:00]} 2. d4 {[%emt 0:00:17]} g6 {[%emt 0:00:14]} 3. Bg5 {[%emt 0:00:14]} Bg7 {[%emt 0:00:13]} 4. Nbd2 {[%emt 0:00:17]} O-O {[%emt 0:00:33]} 5. c3 {[%emt 0:00:14]} h6 {[%emt 0:00:48]} 6. Bh4 {[%emt 0:01:00]} d6 {[%emt 0:00:15]} 7. e4 {[%emt 0:00:34]} c5 {[%emt 0:00:15]} 8. dxc5 {[%emt 0:00:36]} dxc5 {[%emt 0:00:05]} 9. Bc4 {[%emt 0:00:11]} Nc6 {[%emt 0:00:23]} 10. O-O {[%emt 0:02:06]} Nh5 {[%emt 0:01:21]} 11. Qe2 {[%emt 0:01:05]} Qc7 {[%emt 0:00:48]} 12. Qe3 {[%emt 0:04:34]} Na5 {[%emt 0:04:18]} 13. e5 {[%emt 0:08:50]} Nxc4 {[%emt 0:04:08]} 14. Nxc4 {[%emt 0:00:43]} Re8 {[%emt 0:17:22]} 15. Ncd2 {[%emt 0:14:20]} b6 {[%emt 0:05:10]} 16. h3 {[%emt 0:05:36]} Bb7 {[%emt 0:11:35]} 17. g4 {[%emt 0:05:10]} Nf6 {[%emt 0:02:36]} 18. Bg3 {[%emt 0:09:16]} Nd5 {[%emt 0:02:36]} 19. Qe2 {[%emt 0:00:14]} Qc6 {[%emt 0:00:25]} 20. Kh2 {[%emt 0:01:19]} Rad8 {[%emt 0:02:12]} 21. Ne1 {[%emt 0:01:42]} Rf8 {[%emt 0:10:40]} 22. f4 {[%emt 0:04:22]} f5 {[%emt 0:01:41]} 23. Ng2 {[%emt 0:01:16]} Nxc3 {[%emt 0:01:52]} 24. bxc3 {[%emt 0:03:47]} Qxg2+ {[%emt 0:00:19]} 25. Qxg2 {[%emt 0:00:05]} Bxg2 {[%emt 0:00:08]} 26. Kxg2 {[%emt 0:02:54]} Rxd2+ {[%emt 0:01:03]} 27. Rf2 {[%emt 0:00:02]} Rxf2+ {[%emt 0:00:35]} 28. Kxf2 {[%emt 0:02:45]} fxg4 {[%emt 0:00:12]} 29. Ke3 {[%emt 0:00:34]} Bxe5 {[%emt 0:02:37]} 30. fxe5 {[%emt 0:01:10]} Rf3+ {[%emt 0:00:04]} 31. Ke4 {[%emt 0:00:04]} Rxg3 {[%emt 0:00:06]} 32. hxg4 {[%emt 0:00:04]} Kf7 {[%emt 0:00:17]} 33. Kd5 {[%emt 0:00:31]} Rd3+ {[%emt 0:00:19]} 34. Kc4 {[%emt 0:00:17]} Rd2 {[%emt 0:01:57]} 35. a4 {[%emt 0:02:28]} Ke6 {[%emt 0:00:40]} 36. Rh1 {[%emt 0:00:27]} Rg2 {[%emt 0:01:44]} 37. Rxh6 {[%emt 0:00:45]} Rxg4+ {[%emt 0:00:07]} 38. Kb5 {[%emt 0:00:03]} Kxe5 {[%emt 0:00:10]} 39. a5 {[%emt 0:00:44]} bxa5 {[%emt 0:02:51]} 40. Kxc5 {[%emt 0:00:06]} a4 {[%emt 0:02:23]} 41. c4 {[%emt 0:03:32]} Rg3 {[%emt 0:03:24]} 42. Rh8 {[%emt 0:01:17]} Rb3 {[%emt 0:01:18]} 43. Ra8 {[%emt 0:02:33]} Rb7 {[%emt 0:00:43]} 44. Kc6 {[%emt 0:00:07]} Rb6+ {[%emt 0:00:08]} 45. Kd7 {[%emt 0:00:06]} Ra6 {[%emt 0:01:00]} 46. c5 {[%emt 0:01:04]} Kd5 {[%emt 0:01:01]} 47. c6 {[%emt 0:01:08]} Rxc6 {[%emt 0:00:07]} 48. Rxa7 {[%emt 0:00:02]} e5 {[%emt 0:03:54]} 49. Rxa4 {[%emt 0:00:11]} Rb6 {[%emt 0:00:13]} 1-0